Cogmind - Beta 9.6 @@@ ROGUE MODE // 2020.09.03 @ 20:37:33 Player: CrossedViper Result: Destroyed by G-50 Soldier with Heavy Laser Performance ------------- Evolutions (5) 2500 Regions Visited (15) 3000 Robots Destroyed (68) 340 Value Destroyed (2847) 2847 Prototype IDs (23) 460 Alien Tech Used (0) 0 Bonus (2862) 2862 TOTAL SCORE: 12009 Bonus ------- High Alert Combat Kills 85 Follower Combat Kills 177 Entered Garrisons 800 Used RIF Installer 1500 Aligned with FarCom 300 Cogmind --------- Core Integrity 0/1000 Matter 168/300 Energy 85/100 System Corruption 7% Temperature Cool (10) Movement Flying (35) Location -5/Factory Parts ------- > --- POWER (2) -------- (None) > --- PROPULSION (4) --- Cooled Cesium-ion Thruster > --- UTILITY (9) ------ System Shield > --- WEAPON (2) ------- (None) > --- INVENTORY (4) ---- Improved Proton Missile Launcher Improved Remote Datajack Improved Remote Datajack Improved Remote Datajack Peak State ------------ > --- POWER ------------ Fission Core Fission Core > --- PROPULSION ------- Flying Fortress v7 > --- UTILITY ---------- Large Storage Unit Large Storage Unit Enhanced Optical Array Experimental Signal Interpreter Relay Coupler [Grunt] Relay Coupler [Grunt] Relay Coupler [Hunter] > --- WEAPON ----------- Improved Datajack Power Sword > --- INVENTORY -------- High-capacity Matter Pod Hacking Suite System Shield System Shield Relay Coupler [ARC] Relay Coupler [Duelist] Relay Coupler [Demolisher] Relay Coupler [Specialist] Relay Coupler [Hunter] Relay Coupler [Behemoth] High-powered Electrolaser Enhanced Autogun Enhanced Autogun Heavy Machine Gun Improved Proton Missile Launcher Improved Datajack [Rating: 79] Favorites ----------- Power Ion Engine Engine Ion Engine Power Core Fission Core Propulsion Aluminum Leg Treads Light Treads Leg Aluminum Leg Wheel Compact Wheel Flight Unit Flying Fortress v7 Utility Large Storage Unit Device Advanced Terrain Scanner Storage Large Storage Unit Processor Enhanced Optical Array Hackware Relay Coupler [Grunt] Protection Improved Light Armor Plating Weapon Light Assault Rifle Energy Gun Small Laser Ballistic Gun Light Assault Rifle Launcher Grenade Launcher Special Weapon Mining Laser Impact Weapon Impact Mace Slashing Weapon Power Sword Piercing Weapon Lance Special Melee Weapon Improved Datajack Build | -11 -10 -10 -10 -9 -8 -8 -8 -8 -6 -6 -6 -6 -6 -6 -5 ------- Run | Scr Mat Min Exi Min Mat Sto Gar Rec Fac Gar Fac Gar Fac Gar Fac Slots Evolved 10 | . . . . . 4 . . . 4 . . . . . 2 Power 1 | . . . . . . . . . 1 . . . . . . Propulsion 2 | . . . . . 2 . . . . . . . . . . Utility 7 | . . . . . 2 . . . 3 . . . . . 2 Weapon . | . . . . . . . . . . . . . . . . Parts Attached 102 | . 8 16 6 2 13 4 12 . 6 3 2 7 4 4 15 Power 9 | . 1 1 . . 1 1 1 . 1 . 2 . . . 1 Engine 5 | . 1 1 . . . 1 1 . 1 . . . . . . Core 4 | . . . . . 1 . . . . . 2 . . . 1 Reactor . | . . . . . . . . . . . . . . . . Propulsion 20 | . 4 3 2 . 5 . 2 . . . . 1 . . 3 Treads 1 | . . 1 . . . . . . . . . . . . . Leg 11 | . 2 2 2 . 4 . 1 . . . . . . . . Wheel 2 | . 2 . . . . . . . . . . . . . . Hover . | . . . . . . . . . . . . . . . . Flight 6 | . . . . . 1 . 1 . . . . 1 . . 3 Utility 29 | . 2 . 2 . 2 . 4 . 5 2 . 2 1 3 6 Device 3 | . . . . . 1 . 2 . . . . . . . . Storage 6 | . 2 . 2 . . . 1 . . . . . . . 1 Processor 3 | . . . . . 1 . . . 2 . . . . . . Hackware 16 | . . . . . . . 1 . 3 1 . 2 1 3 5 Protection 1 | . . . . . . . . . . 1 . . . . . Artifact . | . . . . . . . . . . . . . . . . Weapon 44 | . 1 12 2 2 5 3 5 . . 1 . 4 3 1 5 Energy Gun 2 | . . . . . 1 . . . . . . . . . 1 Energy Cannon . | . . . . . . . . . . . . . . . . Ballistic Gun 23 | . 1 8 1 1 3 2 2 . . . . 3 . . 2 Ballistic Cannon . | . . . . . . . . . . . . . . . . Launcher 7 | . . 4 . 1 . . 2 . . . . . . . . Special Weapon 2 | . . . . . . 1 . . . . . . . . 1 Impact Weapon 1 | . . . . . . . . . . . . . 1 . . Slashing Weapon 2 | . . . . . . . . . . . . . 2 . . Piercing Weapon 1 | . . . . . . . . . . . . . . . 1 Special Melee Weapon 6 | . . . 1 . 1 . 1 . . 1 . 1 . 1 . Unidentified Prototypes 5 | . . . . . 2 . . . 1 . . . 1 . 1 Parts Lost 41 | . 2 5 . . 1 4 4 . 1 2 . 3 . 5 14 Power 7 | . 1 1 . . . 1 1 . . . . . . 2 1 Propulsion 8 | . 1 1 . . . 1 3 . . . . . . . 2 Utility 11 | . . . . . . . . . 1 1 . 1 . 1 7 Weapon 15 | . . 3 . . 1 2 . . . 1 . 2 . 2 4 Highest Loss Streak 6 | . 2 4 . . 1 3 3 . 1 1 . 2 . 5 6 Average Slot Usage (%) 87 | . 99 99 99 100 97 96 83 72 65 75 79 77 80 69 43 Engine 8 | . 13 13 14 14 3 6 8 9 9 13 2 . . . . Core 2 | . . . . . 5 1 . . . . 10 13 13 8 1 Leg 17 | . 7 26 27 28 33 35 19 . . . . . . . . Wheel 1 | . 20 . . . . . . . . . . . . . . Flight 2 | . . . . . . . 1 9 6 6 6 6 6 6 2 Device 2 | . . . . . 8 9 7 9 2 . . . . . . Storage 20 | . 28 28 28 28 18 18 18 18 13 13 13 13 13 13 3 Processor 4 | . . . . . 8 9 7 . 6 13 13 13 13 8 1 Hackware 5 | . . . . . . . 2 9 13 10 13 14 20 21 26 Energy Gun 1 | . 9 . . . 3 1 . . . . . . . . 1 Ballistic Gun 14 | . 18 27 21 22 7 13 15 9 6 6 6 11 4 . 1 Launcher 1 | . . . . 4 5 . . . . . . . . . . Special Melee Weapon 2 | . . . 6 1 1 . 2 9 6 6 6 1 6 3 . Naked Turns . | . . . . . . . . . . . . . . . . Heaviest Build 61 | 10 38 39 39 41 44 48 48 46 54 57 59 61 56 56 40 Greatest Support 72 | 20 26 20 20 20 72 68 72 72 72 72 72 72 72 72 72 Greatest Overweight (x) 7 | . 3 1 1 2 2 1 2 . . . . . . . 7 Average Overweight (x) . | . 1 1 1 1 . . . . . . . . . . . Largest Inventory Capacity 16 | . 16 16 16 16 16 16 16 16 16 16 16 16 16 16 16 Average Capacity 15 | . 15 16 16 16 16 16 16 16 16 16 16 16 16 16 7 Most Carried 16 | . 9 15 16 16 16 16 16 15 16 16 16 16 16 16 16 Average Carried 14 | . 7 12 15 16 15 15 15 14 14 14 15 15 15 15 6 Final Capacity 16 | 6 16 16 16 16 16 16 16 16 16 16 16 16 16 16 4 Final Carried 16 | 6 9 15 16 16 16 16 14 15 15 15 16 16 16 14 4 Class Distribution -------------------- 30% | Mutant 26% | Bothacker-Mutant 21% | Scavenger-Mutant 15% | Skirmisher 3% | Hacker-Mutant Dominant Class ---------------- Mutant | -10/Materials Scavenger-Mutant | -10/Mines Scavenger-Mutant | -10/Exiles Scavenger-Mutant | -9/Mines Skirmisher | -8/Materials Skirmisher | -8/Storage Skirmisher | -8/Garrison Bothacker-Mutant | -8/Recycling Bothacker-Mutant | -6/Factory Mutant | -6/Garrison Bothacker-Mutant | -6/Factory Bothacker-Mutant | -6/Garrison Bothacker-Mutant | -6/Factory Mutant | -6/Garrison Hacker-Mutant | -5/Factory Resources | -11 -10 -10 -10 -9 -8 -8 -8 -8 -6 -6 -6 -6 -6 -6 -5 ----------- Run | Scr Mat Min Exi Min Mat Sto Gar Rec Fac Gar Fac Gar Fac Gar Fac Matter Collected 1822 | 174 146 275 180 42 289 187 108 22 12 . . 264 . . 123 Remotely . | . . . . . . . . . . . . . . . . Salvage Created 1828 | . 157 210 . 123 375 393 109 . 54 . . 264 . . 143 Parts 142 | . 12 31 . 12 34 22 7 . 3 . . 15 . . 6 Haulers Intercepted 1 | . . . . . . 1 . . . . . . . . . Recyclers Shooed 1 | . . . . 1 . . . . . . . . . . . Parts Field Recycled . | . . . . . . . . . . . . . . . . Retrieved Matter . | . . . . . . . . . . . . . . . . Parts Self-Destructed . | . . . . . . . . . . . . . . . . Prevented . | . . . . . . . . . . . . . . . . Kills | -11 -10 -10 -10 -9 -8 -8 -8 -8 -6 -6 -6 -6 -6 -6 -5 ------- Run | Scr Mat Min Exi Min Mat Sto Gar Rec Fac Gar Fac Gar Fac Gar Fac Combat Hostiles Destroyed 62 | . 6 17 . 8 12 7 4 . 1 . . 6 . . 1 Guns 34 | . 6 6 . 2 4 6 2 . 1 . . 6 . . 1 Cannons 1 | . . . . . . 1 . . . . . . . . . AOE 27 | . . 11 . 6 8 . 2 . . . . . . . . Classes Destroyed 8 | . 2 . . . 3 2 . . . . . . . . 1 Builder 3 | . . . . . . 1 . . . . . . . . 2 Hauler 1 | . . . . . . 1 . . . . . . . . . Mechanic 1 | . . . . . . . . . . . . . . . 1 Operator 1 | . . . . . 1 . . . . . . . . . . Swarmer 33 | . 3 15 . 6 4 . 2 . . . . 3 . . . Grunt 22 | . 3 2 . 2 4 5 2 . 1 . . 3 . . . Sentry 6 | . . . . . 3 2 . . . . . . . . 1 Hunter 1 | . . . . . 1 . . . . . . . . . . Best Kill Streak 7 | . 3 6 . 3 7 4 2 . 1 . . 3 . . 2 Combat Bots Only 7 | . 3 6 . 3 7 3 2 . 1 . . 3 . . 1 Max Kills in Single Turn 3 | . 1 3 . 3 2 2 2 . 1 . . 1 . . 1 Gunslinging . | . . . . . . . . . . . . . . . . Exploded 3 | . . 3 . 3 2 . 2 . . . . . . . . Melee . | . . . . . . . . . . . . . . . . Uniques/NPCs Destroyed . | . . . . . . . . . . . . . . . . Combat | -11 -10 -10 -10 -9 -8 -8 -8 -8 -6 -6 -6 -6 -6 -6 -5 -------- Run | Scr Mat Min Exi Min Mat Sto Gar Rec Fac Gar Fac Gar Fac Gar Fac Damage Taken 7493 | . 267 695 . 212 650 674 674 . 152 472 . 721 . 864 2112 Core 1934 | . 34 114 . 92 62 104 146 . 16 106 . 90 . 159 1011 Absorbed by Shields 182 | . . . . . . . 58 . . . . 60 . 64 . Core Remaining (%) 50 | 100 . . . 4 . . . 43 . . . . . 56 . Volleys Fired 231 | . 15 42 . 13 31 33 14 4 22 3 . 29 . . 25 Largest 2 | . 2 2 . 2 2 2 2 1 1 1 . 2 . . 2 Hottest 100 | . 60 40 . 40 65 100 50 25 25 25 . 50 . . 70 Shots Fired 373 | . 30 72 . 22 52 60 24 4 22 3 . 54 1 . 29 Gun 335 | . 30 66 . 18 37 56 21 4 22 3 . 54 1 . 23 Cannon . | . . . . . . . . . . . . . . . . Launcher 28 | . . 6 . 4 15 . 3 . . . . . . . . Special 10 | . . . . . . 4 . . . . . . . . 6 Kinetic 306 | . 20 66 . 18 22 54 21 4 22 3 . 54 1 . 21 Thermal 16 | . 10 . . . . 4 . . . . . . . . 2 Explosive 28 | . . 6 . 4 15 . 3 . . . . . . . . Electromagnetic 17 | . . . . . 15 2 . . . . . . . . . Robot Hit Streak 13 | . 5 9 . 6 9 10 8 . 9 . . 8 . . 13 Robot Miss Streak 4 | . 3 3 . 2 2 4 2 4 1 . . 4 . . 2 Penetration Max . | . . . . . . . . . . . . . . . . Secondary Targets 5 | . . 2 . . 1 . 1 . . . . 1 . . . Max Gunslinging Chain 1 | . . 1 . . 1 . 1 . . . . 1 . . . Shots Hit Robots 282 | . 17 49 4 15 33 38 16 2 28 3 . 32 10 2 33 Core Hits 133 | . 8 27 . 17 27 16 8 . 5 . . 15 . . 10 Critical Hits 6 | . . . . 2 . . 1 . . . . . . . 3 Critical Kills 2 | . . . . 1 . . . . . . . . . . 1 Critical Parts Destroyed 4 | . . . . 1 . . 1 . . . . . . . 2 Melee Attacks 75 | . . . 4 2 1 . 4 8 13 4 . 2 21 3 13 Impact . | . . . . . . . . . . . . . . . . Slashing 21 | . . . . . . . . . . . . . 11 1 9 Piercing 4 | . . . . . . . . . . . . . . . 4 Sneak Attacks 22 | . . . 4 2 1 . . . 5 . . . 7 . 3 Combat Hostiles 4 | . . . . . . . . . 3 . . . 1 . . Follow-up Attacks . | . . . . . . . . . . . . . . . . Damage Inflicted 5421 | . 201 878 . 327 955 730 362 36 302 . . 565 . . 1065 Guns 3149 | . 201 346 . 114 332 658 208 36 302 . . 565 . . 387 Cannons . | . . . . . . . . . . . . . . . . Explosions 1522 | . . 532 . 213 623 . 154 . . . . . . . . Melee 672 | . . . . . . . . . . . . . . . 672 Ramming 6 | . . . . . . . . . . . . . . . 6 Kinetic 2938 | . 170 346 . 114 201 635 208 36 302 . . 565 . . 361 Thermal 184 | . 31 . . . 55 72 . . . . . . . . 26 Explosive 1467 | . . 532 . 213 568 . 154 . . . . . . . . Electromagnetic 154 | . . . . . 131 23 . . . . . . . . . Impact . | . . . . . . . . . . . . . . . . Slashing 315 | . . . . . . . . . . . . . . . 315 Piercing 357 | . . . . . . . . . . . . . . . 357 Highest Corruption 11 | . . . . . . . . . 6 11 11 11 11 11 7 Average Corruption 9 | . . . . . . . . . 5 8 11 11 11 11 6 Corruption Purged . | . . . . . . . . . . . . . . . . Effects 81 | . . . . . . . . . 7 4 7 25 25 2 11 Message Errors 16 | . . . . . . . . . 3 3 1 3 4 . 2 Matter Fused 14 | . . . . . . . . . 3 . 2 4 2 . 3 Heat Flow Errors 5 | . . . . . . . . . . . 1 1 2 . 1 Energy Discharges 4 | . . . . . . . . . . . . 1 1 . 2 Parts Rejected 2 | . . . . . . . . . . . . 1 . . 1 Data Loss (minor) 6 | . . . . . . . . . . 1 . 1 2 2 . Data Loss (major) 2 | . . . . . . . . . 1 . . . 1 . . Misfires 1 | . . . . . . . . . . . . . 1 . . Alerts 1 | . . . . . . . . . . . . 1 . . . Misdirections 16 | . . . . . . . . . . . 3 4 9 . . Targeting Errors 14 | . . . . . . . . . . . . 9 3 . 2 Overload Shots . | . . . . . . . . . . . . . . . . Overflow Damage 65 | . . 6 . . 5 . . . . . . . . . 54 Projectiles . | . . . . . . . . . . . . . . . . Explosions 11 | . . 6 . . 5 . . . . . . . . . . Melee 54 | . . . . . . . . . . . . . . . 54 Knockbacks . | . . . . . . . . . . . . . . . . Impact . | . . . . . . . . . . . . . . . . Kinetic . | . . . . . . . . . . . . . . . . Secondary . | . . . . . . . . . . . . . . . . Self-Inflicted Damage 151 | . . 24 . 23 80 . 22 . . . . . . . 2 Shots 8 | . . 2 . 1 4 . 1 . . . . . . . . Rammed 5 | . . . . . . . . . . . . . . . 5 Targets Rammed 5 | . . . . . . . . . . . . . . . 5 Kicked . | . . . . . . . . . . . . . . . . Crushed . | . . . . . . . . . . . . . . . . Highest Temperature 408 | . 12 21 . 25 408 32 54 14 2 20 287 288 215 39 203 Average Temperature 70 | . 6 8 . 10 90 13 31 9 1 8 147 127 75 17 89 Received Heat Transfer 2033 | . 42 204 . 105 180 279 312 . 54 102 . 189 . 215 351 Effects 4 | . . . . . 1 . . . . . 1 2 . . . Shutdowns 1 | . . . . . 1 . . . . . . . . . . Energy Bleed 1 | . . . . . . . . . . . 1 . . . . Interference 2 | . . . . . . . . . . . . 2 . . . Siege Activations . | . . . . . . . . . . . . . . . . Robots Corrupted . | . . . . . . . . . . . . . . . . Combat Hostiles . | . . . . . . . . . . . . . . . . Parts Fried . | . . . . . . . . . . . . . . . . Impact Corruptions . | . . . . . . . . . . . . . . . . Robots Melted . | . . . . . . . . . . . . . . . . Combat Hostiles . | . . . . . . . . . . . . . . . . Parts Melted . | . . . . . . . . . . . . . . . . Heat Transferred 312 | . 75 . . . 50 150 . . . . . . . . 37 Parts Sabotaged . | . . . . . . . . . . . . . . . . Parts Stolen . | . . . . . . . . . . . . . . . . Parts Stripped . | . . . . . . . . . . . . . . . . Power Chain Reactions 1 | . . . . . 1 . . . . . . . . . . Missiles Intercepted . | . . . . . . . . . . . . . . . . Alert | -11 -10 -10 -10 -9 -8 -8 -8 -8 -6 -6 -6 -6 -6 -6 -5 ------- Run | Scr Mat Min Exi Min Mat Sto Gar Rec Fac Gar Fac Gar Fac Gar Fac Peak Influence 1127 | . 154 350 . 155 597 381 450 412 1127 725 395 441 306 163 97 Average Influence 293 | . 45 231 . 40 288 239 328 317 1111 666 387 367 262 122 63 Maximum Alert Level 4 | . . 1 . . 2 1 2 2 4 3 1 2 1 . . Low Security (%) 41 | . 100 33 . 100 36 46 . . . . . . 5 100 100 Level 1 40 | . . 66 . . 40 53 76 75 . . 100 54 94 . . Level 2 9 | . . . . . 23 . 23 24 . 82 . 45 . . . Level 3 2 | . . . . . . . . . 22 17 . . . . . Level 4 6 | . . . . . . . . . 77 . . . . . . Level 5 . | . . . . . . . . . . . . . . . . High Security . | . . . . . . . . . . . . . . . . Max Security . | . . . . . . . . . . . . . . . . Squads Dispatched 12 | . 1 . . . 3 2 . . 4 . . . . . 2 Investigation 1 | . . . . . . . . . . . . . . . 1 Extermination . | . . . . . . . . . . . . . . . . Reinforcement 8 | . 1 . . . 3 1 . . 2 . . . . . 1 Assault 2 | . . . . . . . . . 2 . . . . . . Garrison 1 | . . . . . . 1 . . . . . . . . . Intercept . | . . . . . . . . . . . . . . . . Construction Impeded 2 | . . . . . 1 . . . . . . . . . 1 Haulers Reinforced 1 | . . . . . . . . . 1 . . . . . . Stealth | -11 -10 -10 -10 -9 -8 -8 -8 -8 -6 -6 -6 -6 -6 -6 -5 --------- Run | Scr Mat Min Exi Min Mat Sto Gar Rec Fac Gar Fac Gar Fac Gar Fac Distress Signals 7 | . 3 . . . 1 . . . . . 1 . . . 2 Communications Jammed . | . . . . . . . . . . . . . . . . Distress Signals . | . . . . . . . . . . . . . . . . Times Spotted 185 | . 16 19 . 3 17 11 9 10 13 6 3 11 9 19 39 Peak Tracking Total 16 | . 6 3 . 2 3 3 6 6 7 5 3 3 4 15 16 Tactical Retreats 22 | . . . . . . 1 1 . 3 1 1 2 3 1 9 Traps | -11 -10 -10 -10 -9 -8 -8 -8 -8 -6 -6 -6 -6 -6 -6 -5 ------- Run | Scr Mat Min Exi Min Mat Sto Gar Rec Fac Gar Fac Gar Fac Gar Fac Traps Triggered 15 | . . . . . . . 2 . 2 2 . 6 . 2 1 Indirectly . | . . . . . . . . . . . . . . . . Trap Hack Attempts . | . . . . . . . . . . . . . . . . Triggered . | . . . . . . . . . . . . . . . . Disarmed . | . . . . . . . . . . . . . . . . Reprogrammed . | . . . . . . . . . . . . . . . . Reused . | . . . . . . . . . . . . . . . . Traps Extracted . | . . . . . . . . . . . . . . . . Installed . | . . . . . . . . . . . . . . . . Triggered . | . . . . . . . . . . . . . . . . Machines | -11 -10 -10 -10 -9 -8 -8 -8 -8 -6 -6 -6 -6 -6 -6 -5 ---------- Run | Scr Mat Min Exi Min Mat Sto Gar Rec Fac Gar Fac Gar Fac Gar Fac Machines Disabled 14 | . . . . 1 6 . 3 1 . 1 . 1 . 1 . Max in Single Turn 1 | . . . . 1 1 . 1 1 . 1 . 1 . 1 . Garrison Relay 5 | . . . . . . . 2 . . 1 . 1 . 1 . Machines Sabotaged . | . . . . . . . . . . . . . . . . Garrisons Compromised . | . . . . . . . . . . . . . . . . Overloaded Fab Kills . | . . . . . . . . . . . . . . . . Fab Network Shutdowns . | . . . . . . . . . . . . . . . . Hacking | -11 -10 -10 -10 -9 -8 -8 -8 -8 -6 -6 -6 -6 -6 -6 -5 --------- Run | Scr Mat Min Exi Min Mat Sto Gar Rec Fac Gar Fac Gar Fac Gar Fac Machines Accessed 14 | . 1 . 1 1 . 2 . 1 1 . 1 . 4 . 2 Terminals 9 | . 1 . . 1 . 1 . 1 . . . . 3 . 2 Fabricators . | . . . . . . . . . . . . . . . . Repair Stations . | . . . . . . . . . . . . . . . . Recycling Units . | . . . . . . . . . . . . . . . . Scanalyzers . | . . . . . . . . . . . . . . . . Garrison Access 4 | . . . . . . 1 . . 1 . 1 . 1 . . Total Hacks 29 | . 3 . 1 1 . 4 . 2 1 . 1 . 9 . 7 Successful 13 | . 1 . 1 . . 2 . 2 1 . 1 . 3 . 2 Failed 16 | . 2 . . 1 . 2 . . . . . . 6 . 5 Catastrophic 3 | . . . . . . . . . . . . . 2 . 1 Database Lockouts . | . . . . . . . . . . . . . . . . Manual 11 | . 2 . 1 1 . 4 . . . . . . 3 . . Terminals 23 | . 3 . . 1 . 2 . 2 . . . . 8 . 7 Fabricators . | . . . . . . . . . . . . . . . . Repair Stations . | . . . . . . . . . . . . . . . . Recycling Units . | . . . . . . . . . . . . . . . . Scanalyzers . | . . . . . . . . . . . . . . . . Garrison Access 5 | . . . . . . 2 . . 1 . 1 . 1 . . Terminal Hacks 8 | . 1 . 1 . . 1 . 2 . . . . 1 . 2 Record 2 | . . . 1 . . . . 1 . . . . . . . Prototype ID Bank 1 | . . . . . . . . . . . . . . . 1 Open Door 1 | . . . . . . 1 . . . . . . . . . Branch Access Points 1 | . . . . . . . . . . . . . 1 . . Emergency Access Points 1 | . . . . . . . . 1 . . . . . . . Machine Index 1 | . . . . . . . . . . . . . . . 1 Locate Traps 1 | . 1 . . . . . . . . . . . . . . Fabricator Hacks . | . . . . . . . . . . . . . . . . Repair Station Hacks . | . . . . . . . . . . . . . . . . Recycling Unit Hacks . | . . . . . . . . . . . . . . . . Scanalyzer . | . . . . . . . . . . . . . . . . Garrison Access Hacks 4 | . . . . . . 1 . . 1 . 1 . 1 . . Unlock Access 4 | . . . . . . 1 . . 1 . 1 . 1 . . Unauthorized Hacks 1 | . . . . . . . . . . . . . 1 . . Terminals 1 | . . . . . . . . . . . . . 1 . . Track 1 | . . . . . . . . . . . . . 1 . . Fabricators . | . . . . . . . . . . . . . . . . Repair Stations . | . . . . . . . . . . . . . . . . Recycling Units . | . . . . . . . . . . . . . . . . Scanalyzers . | . . . . . . . . . . . . . . . . Garrison Access . | . . . . . . . . . . . . . . . . Data Cores Recovered 1 | . . . . . 1 . . . . . . . . . . Used . | . . . . . . . . . . . . . . . . Hacking Detections 10 | . 1 . . . . 2 . 1 1 . . . 4 . 1 Full Trace Events 1 | . . . . . . . . . . . . . . . 1 Feedback Events 1 | . . . . . . . . . . . . . . . 1 Corruption 1 | . . . . . . . . . . . . . . . 1 Feedback Blocked . | . . . . . . . . . . . . . . . . Robot Schematics Acquired . | . . . . . . . . . . . . . . . . Robots Built . | . . . . . . . . . . . . . . . . Matter . | . . . . . . . . . . . . . . . . Time . | . . . . . . . . . . . . . . . . Total Robot Build Rating . | . . . . . . . . . . . . . . . . Part Schematics Acquired . | . . . . . . . . . . . . . . . . Parts Built . | . . . . . . . . . . . . . . . . Matter . | . . . . . . . . . . . . . . . . Time . | . . . . . . . . . . . . . . . . Total Part Build Rating . | . . . . . . . . . . . . . . . . Parts Repaired . | . . . . . . . . . . . . . . . . Time . | . . . . . . . . . . . . . . . . Parts Recycled . | . . . . . . . . . . . . . . . . Recycled Matter . | . . . . . . . . . . . . . . . . Retrieved Matter . | . . . . . . . . . . . . . . . . Retrieved Components . | . . . . . . . . . . . . . . . . Parts Scanalyzed . | . . . . . . . . . . . . . . . . Part Schematics Acquired . | . . . . . . . . . . . . . . . . Parts Damaged . | . . . . . . . . . . . . . . . . Bothacking | -11 -10 -10 -10 -9 -8 -8 -8 -8 -6 -6 -6 -6 -6 -6 -5 ------------ Run | Scr Mat Min Exi Min Mat Sto Gar Rec Fac Gar Fac Gar Fac Gar Fac Used RIF Installer 3 | . . . . . . . 1 . . . . 1 . 1 . Coupler Efficiency 2 | . . . . . . . . . . . . 1 . 1 . Robots Hacked 33 | . . . 4 1 . . 3 1 7 3 . 2 5 2 5 Non-combat 11 | . . . 3 1 . . . 1 3 . . . 3 . . Combat 22 | . . . 1 . . . 3 . 4 3 . 2 2 2 5 Robot Hacks Applied 37 | . . . 4 1 . . 4 1 8 3 . 2 7 2 5 parse_system 8 | . . . 4 1 . . 1 1 . . . . . . 1 no_distress 2 | . . . . . . . . . 2 . . . . . . drop_inventory 2 | . . . . . . . . . . . . . 2 . . locate_stockpiles 1 | . . . . . . . . . . . . . 1 . . relay_feed 1 | . . . . . . . . . 1 . . . . . . find_garrison 2 | . . . . . . . . . 1 . . . 1 . . link_fov 1 | . . . . . . . . . . . . . 1 . . spike_heat 1 | . . . . . . . . . . 1 . . . . . reboot_system 1 | . . . . . . . . . . . . . 1 . . go_dormant 2 | . . . . . . . . . 1 . . . 1 . . overwrite_iff 16 | . . . . . . . 3 . 3 2 . 2 . 2 4 Relay Couplers Released 22 | . . . . . . . 9 . . 5 . 4 . 4 . Machine Destruction 22 | . . . . . . . 9 . . 5 . 4 . 4 . Attached 13 | . . . . . . . 1 . 3 1 . 2 1 3 2 Robots Rewired . | . . . . . . . . . . . . . . . . Allies Hacked . | . . . . . . . . . . . . . . . . Hacks Repelled . | . . . . . . . . . . . . . . . . Allies | -11 -10 -10 -10 -9 -8 -8 -8 -8 -6 -6 -6 -6 -6 -6 -5 -------- Run | Scr Mat Min Exi Min Mat Sto Gar Rec Fac Gar Fac Gar Fac Gar Fac Total Allies 17 | . . 1 . . . . 3 . 3 2 . 2 . 2 4 Largest Group 2 | . . 1 1 . . . 2 . 2 1 . 2 . 1 2 Highest-Rated Group 96 | . . 31 31 . . . 32 . 58 32 . 58 . 81 96 Highest-Rated Ally 81 | . . 31 31 . . . 16 . 32 32 . 29 . 81 49 Total Orders . | . . . . . . . . . . . . . . . . Ally Attacks 52 | . . 3 . . . . 12 . 5 8 . 11 . 6 7 Total Damage 1027 | . . 62 . . . . 104 . 156 209 . 190 . 156 150 Kills 6 | . . 2 . . . . 1 . . 1 . . . 2 . Allies Corrupted . | . . . . . . . . . . . . . . . . Allies Melted . | . . . . . . . . . . . . . . . . Intel | -11 -10 -10 -10 -9 -8 -8 -8 -8 -6 -6 -6 -6 -6 -6 -5 ------- Run | Scr Mat Min Exi Min Mat Sto Gar Rec Fac Gar Fac Gar Fac Gar Fac Robot Analysis Total . | . . . . . . . . . . . . . . . . Derelict Logs Recovered 2 | . . 1 . 1 . . . . . . . . . . . Drone Launches . | . . . . . . . . . . . . . . . . Drone Recoveries . | . . . . . . . . . . . . . . . . Exploration | -11 -10 -10 -10 -9 -8 -8 -8 -8 -6 -6 -6 -6 -6 -6 -5 ------------- Run | Scr Mat Min Exi Min Mat Sto Gar Rec Fac Gar Fac Gar Fac Gar Fac Turns Passed 5720 | . 375 793 857 565 522 378 300 155 403 95 123 298 423 94 339 Spaces Moved 4954 | 1 275 438 557 326 319 190 197 271 611 133 230 230 593 149 434 Core 198 | . . . . . . . . . . . . . . . 198 Treads 5 | . . 5 . . . . . . . . . . . . . Legs 1968 | 1 60 433 557 326 273 190 128 . . . . . . . . Wheels 215 | . 215 . . . . . . . . . . . . . . Hover . | . . . . . . . . . . . . . . . . Flight 2568 | . . . . . 46 . 69 271 611 133 230 230 593 149 236 Fastest Speed 35 | 120 100 150 150 150 50 130 50 50 50 50 50 50 50 50 35 Average Speed 91 | 120 111 150 150 159 125 130 112 50 50 50 50 50 50 50 50 Slowest Speed 400 | 120 210 180 150 180 190 160 190 50 50 50 50 50 50 50 400 Overloaded Moves . | . . . . . . . . . . . . . . . . Propulsion Burnouts . | . . . . . . . . . . . . . . . . Robots Hopped 17 | . . . . . . . . 3 2 . . . 2 1 9 Cave-ins Triggered 1 | . . . . . . . . . . . . . . . 1 Exploration Rate (%) 43 | 2 58 81 72 88 37 47 42 83 25 34 8 42 18 45 17 Regions Visited 15 Branch Regions 5 Pre-discovered Areas 1 | . . . 1 . . . . . . . . . . . . Known Exits Taken 4 | . . . . . . 1 . . 1 . 1 . 1 . . Unknown Exits Taken 7 | 1 1 1 1 1 1 . . 1 . . . . . . . Scrap Searched 3 | . . 2 . 1 . . . . . . . . . . . Spaces Dug 41 | . . 8 . 6 12 . 2 . . . . . 11 . 2 Terrain Destroyed 202 | . . 46 . 26 102 1 14 . . . . . 11 . 2 Melee 13 | . . . . . . . . . . . . . 11 . 2 Projectile 1 | . . . . . . 1 . . . . . . . . . AOE 188 | . . 46 . 26 102 . 14 . . . . . . . . Actions | -11 -10 -10 -10 -9 -8 -8 -8 -8 -6 -6 -6 -6 -6 -6 -5 --------- Run | Scr Mat Min Exi Min Mat Sto Gar Rec Fac Gar Fac Gar Fac Gar Fac Total 5777 | . 314 508 577 352 399 277 253 280 685 157 238 376 699 164 498 Wait 276 | . 6 . . 10 20 40 13 . 31 2 2 76 72 1 3 Move 4903 | . 274 437 556 325 318 189 195 264 606 131 229 228 588 145 418 Hop 15 | . . . . . . . . 3 2 . . . 2 1 7 Pick Up 72 | . 8 12 4 . 6 6 6 1 5 4 3 3 5 1 8 Fast Attach 20 | . 1 . . . 8 2 1 . 1 . . 1 2 2 2 Attach 50 | . 4 6 2 . 4 2 3 . 5 3 2 3 1 2 13 Detach 1 | . . . . . 1 . . . . . . . . . . Swap 32 | . 3 10 4 2 1 . 8 . . . . 3 1 . . Drop 46 | . 3 1 7 . 9 5 3 . . 1 2 . 7 4 4 Fire 231 | . 15 42 . 13 31 33 14 4 22 3 . 29 . . 25 Melee 75 | . . . 4 2 1 . 4 8 13 4 . 2 21 3 13 Ram 5 | . . . . . . . . . . . . . . . 5 Kick . | . . . . . . . . . . . . . . . . Crush . | . . . . . . . . . . . . . . . . Escape Stasis 51 | . . . . . . . 6 . . 9 . 31 . 5 . Rewire . | . . . . . . . . . . . . . . . . Trap . | . . . . . . . . . . . . . . . . Miscellaneous . | . . . . . . . . . . . . . . . . Route ------- -11/Scrapyard -10/Materials (discovered 3 exits: [*Mat x2] / [*Min]) -10/Mines (discovered 3 exits: [*Mat x2] / *Exi) -10/Exiles -9/Mines -8/Materials (discovered 3 exits: [Fac] / *Sto x2) -8/Storage (discovered 2 exits: *Rec / Gar) -8/Garrison -8/Recycling -6/Factory (discovered 2 exits: Low / Gar) -6/Garrison -6/Factory -6/Garrison -6/Factory (discovered 3 exits: *Low x2 / Gar) -6/Garrison -5/Factory History --------- Turn | Location | Event 1 | -11/Scrapyard | Discovered new exit (range 0) 1 | -11/Scrapyard | Entered Materials 127 | -10/Materials | Discovered new exit (range 13) 179 | -10/Materials | Discovered new exit (range 10) 314 | -10/Materials | Build established: Mutant 358 | -10/Materials | Discovered new exit (range 9) 376 | -10/Materials | Entered Mines 617 | -10/Mines | Learned Materials emergency access door positions 703 | -10/Mines | Lost 4 parts (1p1n2w) 815 | -10/Mines | Discovered new exit (range 13) 932 | -10/Mines | Core integrity fell below 50% 987 | -10/Mines | Build established: Scavenger-Mutant 1038 | -10/Mines | Received a Mining Laser from a helpful Derelict 1129 | -10/Mines | Discovered new exit (range 9) 1160 | -10/Mines | Deemed a non-threat by the Exiles lab entrance 1162 | -10/Mines | Discovered new exit (range 5) 1169 | -10/Mines | Entered Exiles 1169 | -10/Exiles | Accompanied by 1 ally 1207 | -10/Exiles | Met 8R-AWN 1231 | -10/Exiles | Met EX-HEX 1276 | -10/Exiles | Met EX-BIN 1337 | -10/Exiles | Met EX-DEC 1345 | -10/Exiles | Learned location of Zion (-6) 1450 | -10/Exiles | Aligned with FarCom system 1451 | -10/Exiles | Given EX-Vault access code 1486 | -10/Exiles | Opened EX-Vault 1506 | -10/Exiles | Found Prototype Flight Unit 1536 | -10/Exiles | Warned to stay clear of 0b10 Research branches 1904 | -10/Exiles | Build established: Mutant 2010 | -10/Exiles | Discovered new exit (range 14) 2026 | -10/Exiles | Left Exiles lab with Flying Fortress v7 2026 | -10/Exiles | Entered Mines 2207 | -9/Mines | Core integrity fell below 20% 2378 | -9/Mines | Build established: Scavenger-Mutant 2581 | -9/Mines | Discovered new exit (range 7) 2591 | -9/Mines | Entered Materials 2591 | -8/Materials | Evolved 4 slots: Propulsion x2, Utility x2 2592 | -8/Materials | Identified Flying Fortress v7 2850 | -8/Materials | Discovered new exit (range 17) 2913 | -8/Materials | Discovered new exit (range 13) 2951 | -8/Materials | Destroyed 7 combat bots 3097 | -8/Materials | Discovered new exit (range 12) 3113 | -8/Materials | Entered Storage 3130 | -8/Storage | Build established: Skirmisher 3214 | -8/Storage | Lost 3 parts (1p2w) 3318 | -8/Storage | Used back door to open Recycling access 3318 | -8/Storage | Discovered new exit (range 4) 3439 | -8/Storage | Garrison activated, responded to threat 3481 | -8/Storage | Identified exit to Garrison 3491 | -8/Storage | Entered Garrison 3498 | -8/Garrison | Installed Relay Interface Framework 3580 | -8/Garrison | Triggered checkpoint 3619 | -8/Garrison | Garrison Relay disabled 3694 | -8/Garrison | Triggered checkpoint 3714 | -8/Garrison | Core integrity fell below 50% 3741 | -8/Garrison | Lost 3 parts (1p2n) 3743 | -8/Garrison | Discovered new exit (range 10) 3750 | -8/Garrison | Triggered checkpoint 3753 | -8/Garrison | Garrison Relay disabled 3791 | -8/Garrison | Entered Recycling 3804 | -8/Recycling | Spotter reported a threat 3823 | -8/Recycling | Spotter reported a threat 3864 | -8/Recycling | Spotter reported a threat 3864 | -8/Recycling | Spotter reported a threat 3864 | -8/Recycling | Spotter reported a threat 3876 | -8/Recycling | Spotter reported a threat 3910 | -8/Recycling | Spotter reported a threat 3910 | -8/Recycling | Spotter reported a threat 3911 | -8/Recycling | Spotter reported a threat 3911 | -8/Recycling | Spotter reported a threat 3917 | -8/Recycling | Spotter reported a threat 3929 | -8/Recycling | Spotter reported a threat 3938 | -8/Recycling | Discovered new exit (range 15) 3946 | -8/Recycling | Entered Factory 3946 | -6/Factory | Evolved 4 slots: Power x1, Utility x3 3947 | -6/Factory | Identified exit to Lower Caves 4065 | -6/Factory | Build established: Bothacker-Mutant 4078 | -6/Factory | Found Prototype Processor 4078 | -6/Factory | Identified Exp. Signal Interpreter 4296 | -6/Factory | First assault squad dispatched 4348 | -6/Factory | Identified exit to Garrison 4349 | -6/Factory | Entered Garrison 4382 | -6/Garrison | Triggered checkpoint 4401 | -6/Garrison | Discovered new exit (range 19) 4414 | -6/Garrison | Garrison Relay disabled 4418 | -6/Garrison | System corruption reached 10% 4432 | -6/Garrison | Triggered checkpoint 4443 | -6/Garrison | Identified exit to Factory 4444 | -6/Garrison | Entered Factory 4567 | -6/Factory | Identified exit to Garrison 4567 | -6/Factory | Entered Garrison 4570 | -6/Garrison | Expanded RIF knowledge: Coupler Efficiency 4700 | -6/Garrison | Triggered checkpoint 4730 | -6/Garrison | Garrison Relay disabled 4824 | -6/Garrison | Triggered checkpoint 4836 | -6/Garrison | Triggered checkpoint 4859 | -6/Garrison | Discovered new exit (range 10) 4863 | -6/Garrison | Identified exit to Factory 4865 | -6/Garrison | Entered Factory 5288 | -6/Factory | Identified exit to Garrison 5288 | -6/Factory | Entered Garrison 5300 | -6/Garrison | Triggered checkpoint 5306 | -6/Garrison | Garrison Relay disabled 5330 | -6/Garrison | Spotted B-75 Beast 5333 | -6/Garrison | Triggered checkpoint 5334 | -6/Garrison | Triggered checkpoint 5341 | -6/Garrison | Triggered checkpoint 5356 | -6/Garrison | Triggered checkpoint 5370 | -6/Garrison | Discovered new exit (range 12) 5378 | -6/Garrison | Expanded RIF knowledge: Coupler Efficiency 5382 | -6/Garrison | Entered Factory 5382 | -5/Factory | Evolved 2 slots: Utility x2 5387 | -5/Factory | Lost 5 parts (2p1u2w) 5462 | -5/Factory | Crushed by falling debris 5519 | -5/Factory | Lost 6 parts (3u3w) 5611 | -5/Factory | Lost 3 parts (1p2n) 5623 | -5/Factory | Core integrity fell below 50% 5671 | -5/Factory | Core integrity fell below 20% 5705 | -5/Factory | Lost 5 parts (4u1w) 5721 | -5/Factory | Destroyed by G-50 Soldier with Heavy Laser Last Messages --------------- 05669_ Imp. Remote Datajack destroyed. 05670_ Penetrated by Slug. 05671_ Slug penetrates T-07 Excavator. 05673_ Slug penetrates G-50 Soldier. 05673_ Penetrated by Slug. 05673_ Relay Coupler [Grunt] destroyed. 05673_ Slug penetrates Wall. 05674_ Relay Coupler [Duelist] destroyed. 05676_ QIICDRO|31XT9L8D3A|9M&RU5%PS:1 05683_ Penetrated by Slug. 05685_ K-01 Serf cleans the Construction Platform. 05691_ K-01 Serf cleans the Terminal. 05715_ Triggered Blade Trap. 05715_ Massive razor-sharp blades shoot up from within the floor. 05715_ Lance severed. 05715_ Relay Coupler [Sentry] severed. 05715_ Hacking Suite severed. 05717_ Acquired Prototype Flight Unit. 05717_ Identified Cld. Cesium-ion Thruster. 05720_ K-01 Serf cleans the Terminal. Map ----- +----------------------------------------------------+ | ?????????????????????????????????????????????????? | | ?????????????????????????????????????????????????? | | ?????????????????????????????????????????????????? | | ?????????????????????????????????????????????????? | | ?????????????????????????????????????????????????? | | ?????????????????????????????????????????????????? | | ?????????????????????????????????????????????????? | | ?????????????????????????????????????????????????? | | ?????????????????????????????????????????????????? | | ?????????????????????????????????????????????????? | | ????????????????????????? ???????????????????????? | | ????????????????????????? ???????????????????????? | | ????????????????????????? ???????????????????????? | | ????????????????????????? ???????????????????????? | | ????????????????????????? ???????????????????????? | | ????????????????????????? ???????????????????????? | | ????????????????????????? ???????????????????????? | | ????????????????????????# #??????????????????????? | | ????????????????????????# #??????????????????????? | | ????????????????????????# #??????????????????????? | | ????????????????????????# #??????????????????????? | | ????????????????????????#k#??????????????????????? | | ????????????????????????# #??????????????????????? | | ????????????????????????# #??????????????????????? | | ??????????????########### #####??????????????????? | | ??????????????# #@ #???????????w??????? | | ??????????????# # #??????????????????? | | ??????????????# #u +????????????Y?????? | | ??????????????# /w #??????????????????? | | ??????????????# """" # #??????????????????? | | ??????????????# """" #g #??????????????????? | | ??????????????# """" # R #??????????????????? | | ??????????????# """" # g #??????????????????? | | ??????????????###?#######k A ##########?????????? | | ????????????????????????# ???????? | | ????????????????????????# ##????????????? | | ????????????????????????# #?????????????? | | ????????????????????????#! #?????????????? | | ??????????????????????### """" #?????????????? | | ??????????????????????#""k """" #?????????????? | | ??????????????????????#"" """" #?????????????? | | ######+####???????????#"T """" h #?????????????? | | #???????????#"" """" h #?????????????? | | #???????????#"" """" h #?????????????? | | #???????????### """" #?????????????? | | ############### #?????????????? | | """" #?????????????? | | """" #?????????????? | | """" #?????????????? | | """" #?????????????? | +----------------------------------------------------+ Best States ------------- Heat Dissipation 40 Energy Generation 31 Energy Capacity 520 Matter Stores 300 Matter Capacity 300 Sight Range 22 Terrain Scan Range 20 Terrain Scan Density 110 Armor Coverage 150 Evasion (%) 66 Recoil Reduction 1 Offensive Hacking 10 Defensive Hacking 20 Item Schematics ----------------- None Robot Schematics ------------------ None Fabricated ------------ Nothing Alien Tech Used ----------------- None Achievements -------------- Factory Defaults Challenges ------------ None Game ------ Seed GodNovaCycler Manual? 0 Play Time 01:03:13 Cumulative 60.1 hours Start 2020.09.03 @ 19:21:22 End 2020.09.03 @ 20:37:33 Sessions 1 Manual Loads 0 Difficulty Rogue Special Mode None Game No. 57 Rogue 56 Adventurer 0 Explorer 1 Win Type - Total 0 Types 0/0/0/0/0/0/0 Lore% 45 Gallery% 73 Achievement% 53 Wizard Run 0 Options --------- ASCII 0 Keyboard 0 Movement Numpad Keybinds 0 Fullscreen 1 Font 18/SmallcapsGlow Map View 76x50 Tactical HUD 1 Map Filters NONE Filters NONE Steam 1 RUN: c490191a-128c-46a0-9a5b-59d2f9988dd7